fUSD/lending_fUSD_20250407
["ID","MTS","AMOUNT","RATE_DAILY","PERIOD"]
[357308452,1744004148690,-601.47,0.00050136,120]
[357308453,1744004148756,-500.0,0.00050136,120]
[357308454,1744004148819,-500.0,0.00050136,120]
[357308455,1744004148889,-854.05,0.00050136,120]
[357308456,1744004148955,-500.0,0.00050136,120]
[357308457,1744004149021,-500.0,0.00050136,120]
[357308458,1744004149088,-500.0,0.00050136,120]
[357308459,1744004149158,-565.78,0.00050136,120]
[357308460,1744004149222,-500.0,0.00050136,120]
[357308461,1744004149284,-500.0,0.00050136,120]
[357308462,1744004149348,-500.0,0.00050136,120]
[357308463,1744004149413,-695.39,0.00050136,120]
[357308464,1744004149480,-500.0,0.00050136,120]
[357308465,1744004149542,-500.0,0.00050136,120]
[357308466,1744004149605,-516.92,0.00050136,120]
[357308467,1744004149669,-500.0,0.00050136,120]
[357308468,1744004149731,-551.51,0.00050136,120]
[357308469,1744004149792,-500.0,0.00050136,120]
[357308470,1744004149856,-500.0,0.00050136,120]
[357308471,1744004149921,-2327.34,0.00050136,120]
[357308472,1744004149984,-500.0,0.00050136,120]
[357308473,1744004150051,-2127.39,0.00050136,120]
[357308474,1744004150115,-500.0,0.00050136,120]
[357308475,1744004150179,-500.0,0.00050136,120]
[357308476,1744004150241,-3568.12,0.00050136,120]
[357308477,1744004150306,-500.0,0.00050136,120]
[357308478,1744004150369,-500.0,0.00050136,120]
[357308479,1744004150433,-500.0,0.00050136,120]
[357308480,1744004150494,-500.0,0.00050136,120]
[357308481,1744004150554,-500.0,0.00050136,120]
[357308482,1744004150615,-500.0,0.00050136,120]
[357308483,1744004150683,-500.0,0.00050136,120]
[357308484,1744004150746,-500.0,0.00050136,120]
[357308485,1744004150807,-1265.5,0.00050136,120]
[357308486,1744004150869,-500.0,0.00050136,120]
[357308487,1744004150932,-500.0,0.00050136,120]
[357308488,1744004150996,-500.0,0.00050136,120]
[357308489,1744004151059,-671.37,0.00050136,120]
[357308490,1744004151124,-500.0,0.00050136,120]
[357308491,1744004151187,-610.60559585,0.00050136,120]
[357308492,1744004151250,-500.0,0.00050136,120]
[357308493,1744004151315,-500.0,0.00050136,120]
[357308494,1744004151384,-500.0,0.00050136,120]
[357308495,1744004151446,-500.0,0.00050136,120]
[357308496,1744004151507,-500.0,0.00050136,120]
[357308497,1744004151568,-500.0,0.00050136,120]
[357308498,1744004151629,-500.0,0.00050136,120]
[357308499,1744004151694,-500.0,0.00050136,120]
[357308500,1744004151756,-500.0,0.00050136,120]
[357308501,1744004151816,-500.0,0.00050136,120]
[357308502,1744004151878,-588.88,0.00050136,120]
[357308503,1744004151937,-536.42,0.00050136,120]
[357308504,1744004151995,-389.61330756,0.00050136,120]
[357308505,1744004152055,-546.74378233,0.00050136,120]
[357308506,1744004152121,-500.0,0.00050136,120]
[357308507,1744004152189,-500.0,0.00050136,120]
[357308508,1744004152256,-500.0,0.00050136,120]
[357308509,1744004152323,-491.87881753,0.00050136,120]
[357308510,1744004152390,-500.0,0.00050136,120]
[357308511,1744004152455,-500.0,0.00050136,120]
[357308512,1744004152524,-500.0,0.00050136,120]
[357308513,1744004152591,-573.05,0.00050136,120]
[357308514,1744004152659,-500.0,0.00050136,120]
[357308515,1744004152724,-500.0,0.00050136,120]
[357308516,1744004152788,-500.0,0.00050136,120]
[357308517,1744004152850,-500.0,0.00050136,120]
[357308518,1744004152913,-500.0,0.00050136,120]
[357308519,1744004152973,-500.0,0.00050136,120]
[357308520,1744004153033,-500.0,0.00050136,120]
[357308521,1744004153095,-920.41,0.00050136,120]
[357308522,1744004153158,-500.0,0.00050136,30]
[357308523,1744004153218,-500.0,0.00050136,120]
[357308524,1744004153278,-500.0,0.00050136,120]
[357308525,1744004153340,-722.15,0.00050136,120]
[357308526,1744004153402,-500.0,0.00050136,120]
[357308527,1744004153464,-500.0,0.00050136,120]
[357308528,1744004153527,-500.0,0.00050136,120]
[357308529,1744004153588,-500.0,0.00050136,120]
[357308530,1744004153650,-500.0,0.00050136,120]
[357308531,1744004153712,-500.0,0.00050136,120]
[357308532,1744004153938,-500.0,0.00050136,120]
[357308533,1744004154010,-1878.13,0.00050136,120]
[357308534,1744004154073,-540.92,0.00050136,120]
[357308535,1744004154136,-370.21767866,0.00050136,120]
[357308536,1744004154200,-530.78,0.00050136,120]
[357308537,1744004154263,-379.70873327,0.00050136,120]
[357308538,1744004154327,-500.0,0.00050136,120]
[357308539,1744004154393,-500.0,0.00050136,120]
[357308540,1744004154455,-523.72662488,0.00050136,120]
[357308541,1744004154516,-500.0,0.00050136,120]
[357308542,1744004154578,-806.17,0.00050136,120]
[357308543,1744004154644,-1212.9,0.00050136,120]
[357308544,1744004154707,-500.0,0.00050136,120]
[357308545,1744004154770,-14376.76,0.00050136,120]
[357308546,1744004154837,-500.0,0.00050136,120]
[357308547,1744004154904,-500.0,0.00050136,120]
[357308548,1744004154972,-500.0,0.00050136,120]
[357308549,1744004155045,-546.47,0.00050136,120]
[357308550,1744004155109,-917.72,0.00050136,120]
[357308551,1744004155173,-500.0,0.00050136,120]
[357308552,1744004155237,-500.0,0.00050136,120]
[357308553,1744004155302,-1483.35,0.00050136,120]
[357308554,1744004155368,-500.0,0.00050136,120]
[357308555,1744004155430,-500.0,0.00050136,120]
[357308556,1744004155498,-902.71,0.00050136,120]
[357308557,1744004155559,-500.0,0.00050136,120]
[357308558,1744004155621,-564.17,0.00050136,120]
[357308559,1744004155688,-500.0,0.00050136,120]
[357308560,1744004155750,-500.0,0.00050136,120]
[357308561,1744004155813,-1381.13,0.00050136,120]
[357308562,1744004155874,-500.0,0.00050136,120]
[357308563,1744004155935,-727.29,0.00050136,120]
[357308564,1744004156000,-500.0,0.00050136,120]
[357308565,1744004156067,-500.0,0.00050136,120]
[357308566,1744004156129,-500.0,0.00050136,120]
[357308567,1744004156191,-500.0,0.00050136,120]
[357308568,1744004156254,-521.52,0.00050136,120]
[357308569,1744004156317,-4838.43,0.00050136,120]
[357308570,1744004156381,-941.24,0.00050136,100]
[357308571,1744004156444,-500.0,0.00050136,120]
[357308572,1744004156505,-500.0,0.00050136,120]
[357308573,1744004156565,-500.0,0.00050136,120]
[357308574,1744004156623,-500.0,0.00050136,120]
[357308575,1744004156688,-500.0,0.00050136,120]
[357308576,1744004156749,-500.0,0.00050136,120]
[357308577,1744004156811,-4405.71,0.00050136,120]
[357308578,1744004156871,-500.0,0.00050136,120]
[357308579,1744004156930,-500.0,0.00050136,120]
[357308580,1744004156990,-500.0,0.00050136,120]
[357308581,1744004157052,-500.0,0.00050136,120]
[357308582,1744004157112,-500.0,0.00050136,120]
[357308583,1744004157173,-500.0,0.00050136,120]
[357308584,1744004157235,-500.0,0.00050136,120]
[357308585,1744004157298,-500.0,0.00050136,120]
[357308586,1744004157360,-500.0,0.00050136,120]
[357308587,1744004157423,-500.0,0.00050136,120]
[357308588,1744004157483,-1085.1,0.00050136,120]
[357308589,1744004157542,-1190.97,0.00050136,120]
[357308590,1744004157603,-500.0,0.00050136,120]
[357308591,1744004157662,-611.58,0.00050136,120]
[357308592,1744004157723,-1814.7,0.00050136,120]
[357308593,1744004157782,-500.0,0.00050136,120]
[357308594,1744004157842,-500.0,0.00050136,120]
[357308595,1744004157903,-500.0,0.00050136,120]
[357308596,1744004157961,-500.0,0.00050136,120]
[357308597,1744004158022,-420.55994695,0.00050136,120]
[357308598,1744004158087,-757.6,0.00050136,120]
[357308599,1744004158151,-1000.0,0.00050136,120]
[357308600,1744004158217,-500.0,0.00050136,120]
[357308601,1744004158278,-521.83649174,0.00050136,120]
[357308602,1744004158342,-500.0,0.00050136,120]
[357308603,1744004158404,-517.59317148,0.00050136,120]
[357308604,1744004158466,-500.0,0.00050136,120]
[357308605,1744004158525,-500.0,0.00050136,120]
[357308606,1744004158590,-500.0,0.00050136,120]
[357308607,1744004158651,-500.0,0.00050136,120]
[357308608,1744004158713,-500.0,0.00050136,120]
[357308609,1744004158773,-500.0,0.00050136,120]
[357308610,1744004158831,-500.0,0.00050136,120]
[357308611,1744004158892,-1087.38,0.00050136,120]
[357308612,1744004158949,-500.0,0.00050136,120]
[357308613,1744004159007,-284.87380897,0.00050136,120]
[357308614,1744004159066,-500.0,0.00050136,120]
[357308615,1744004159127,-500.0,0.00050136,120]
[357308616,1744004159188,-1220.22,0.00050136,120]
[357308617,1744004159250,-620.18,0.00050136,120]
[357308618,1744004159312,-500.0,0.00050136,120]
[357308619,1744004159374,-528.41,0.00050136,120]
[357308620,1744004159435,-23119.87,0.00050136,120]
[357308621,1744004159495,-500.0,0.00050136,120]
[357308622,1744004159554,-500.0,0.00050136,120]
[357308623,1744004159612,-500.0,0.00050136,120]
[357308624,1744004159674,-200.0,0.00050249,120]
[357308625,1744004159740,-244.55967092,0.0005035,120]
[357308626,1744004159804,-1607.14,0.0005041,120]
[357308627,1744004160028,-500.0,0.0005041,120]
[357308628,1744004160096,-2000.0,0.0005041,120]
[357308629,1744004160163,-313.402132,0.0005041,120]
[357308630,1744004160235,-3193.986782,0.0005041,120]
[357308631,1744004160306,-660.523371,0.0005041,120]
[357308632,1744004160374,-500.0,0.0005041,120]
[357308633,1744004160442,-500.0,0.0005041,120]
[357308634,1744004160507,-566.43895762,0.0005041,120]
[357308635,1744004160570,-540.38324194,0.0005041,120]
[357308636,1744004160637,-541.70938836,0.0005041,120]
[357308637,1744004160700,-899.06,0.0005041,120]
[357308638,1744004160765,-559.37,0.0005041,120]
[357308639,1744004160825,-603.34338536,0.0005041,120]
[357308640,1744004160888,-500.0,0.0005041,120]
[357308641,1744004160947,-500.0,0.0005041,120]
[357308642,1744004161010,-500.0,0.0005041,120]
[357308643,1744004161071,-500.0,0.0005041,120]
[357308644,1744004161136,-554.94,0.0005041,120]
[357308645,1744004161197,-500.0,0.0005041,120]
[357308646,1744004161258,-500.0,0.0005041,120]
[357308647,1744004161318,-500.0,0.0005041,120]
[357308648,1744004161378,-508.34413393,0.0005041,120]
[357308649,1744004161438,-516.61712312,0.0005041,120]
[357308650,1744004161499,-500.0,0.0005041,120]
[357308651,1744004161562,-500.0,0.0005041,120]
[357308652,1744004161629,-500.0,0.0005041,120]
[357308653,1744004161700,-584.62124745,0.0005041,120]
[357308654,1744004161770,-284.90594254,0.0005041,120]
[357308655,1744004161837,-500.0,0.0005041,120]
[357308656,1744004161908,-500.0,0.0005041,120]
[357308657,1744004161975,-500.0,0.0005041,120]
[357308658,1744004162042,-500.0,0.0005041,120]
[357308659,1744004162108,-500.0,0.0005041,120]
[357308660,1744004162182,-500.0,0.0005041,120]
[357308661,1744004162257,-500.0,0.0005041,120]
[357308662,1744004162330,-500.0,0.0005041,120]
[357308663,1744004162407,-500.0,0.0005041,120]
[357308664,1744004162479,-500.0,0.0005041,120]
[357308665,1744004162548,-500.0,0.0005041,120]
[357308666,1744004162619,-604.58,0.0005041,120]
[357308667,1744004162697,-500.0,0.0005041,120]
[357308668,1744004162770,-588.72140742,0.0005041,120]
[357308669,1744004162850,-588.31352535,0.0005041,120]
[357308670,1744004162925,-500.0,0.0005041,120]
[357308671,1744004162999,-500.0,0.0005041,120]
[357308672,1744004163075,-264.47479085,0.0005041,120]
[357308673,1744004163153,-500.0,0.0005041,120]
[357308674,1744004163230,-500.0,0.0005041,120]
[357308675,1744004163306,-500.0,0.0005041,120]
[357308676,1744004163379,-500.0,0.0005041,120]
[357308677,1744004163452,-500.0,0.0005041,120]
[357308678,1744004163522,-500.0,0.0005041,120]
[357308679,1744004163591,-500.0,0.0005041,120]
[357308680,1744004163666,-500.0,0.0005041,120]
[357308681,1744004163739,-500.0,0.0005041,120]
[357308682,1744004163809,-500.0,0.0005041,120]
[357308683,1744004163881,-678.98,0.0005041,120]
[357308684,1744004163953,-529.56,0.0005041,120]
[357308685,1744004164026,-603.24822802,0.0005041,120]
[357308686,1744004164098,-500.0,0.0005041,120]
[357308687,1744004164166,-500.0,0.0005041,120]
[357308688,1744004164232,-500.0,0.0005041,120]
[357308689,1744004164297,-500.0,0.0005041,30]
[357308690,1744004164363,-500.0,0.0005041,120]
[357308691,1744004164427,-500.0,0.0005041,120]
[357308692,1744004164491,-500.0,0.0005041,120]
[357308693,1744004164554,-500.0,0.0005041,120]
[357308694,1744004164616,-500.0,0.0005041,120]
[357308695,1744004164682,-1873.68,0.0005041,120]
[357308696,1744004164744,-500.0,0.0005041,120]
[357308697,1744004164805,-500.0,0.0005041,120]
[357308698,1744004164866,-500.0,0.0005041,120]
[357308699,1744004164929,-407.82324286,0.0005041,120]
[357308700,1744004164990,-500.0,0.0005041,120]
[357308701,1744004165053,-760.96,0.0005041,120]
[357308702,1744004165115,-318.85738288,0.0005041,120]
[357308703,1744004165178,-500.0,0.0005041,120]
[357308704,1744004165241,-500.0,0.0005041,120]
[357308705,1744004165307,-500.0,0.0005041,120]
[357308706,1744004165370,-500.0,0.0005041,120]
[357308707,1744004165433,-500.0,0.0005041,120]
[357308708,1744004165495,-500.0,0.0005041,120]
[357308709,1744004165565,-683.04,0.0005041,120]
[357308710,1744004165624,-500.0,0.0005041,120]
[357308711,1744004165690,-500.0,0.0005041,120]
[357308712,1744004165751,-500.0,0.0005041,120]
[357308713,1744004165809,-500.0,0.0005041,120]
[357308714,1744004165868,-500.0,0.0005041,120]
[357308715,1744004165929,-500.0,0.0005041,120]
[357308716,1744004165993,-500.0,0.0005041,120]
[357308717,1744004166056,-698.44,0.0005041,120]
[357308718,1744004166120,-500.0,0.0005041,120]
[357308719,1744004166183,-500.0,0.0005041,120]
[357308720,1744004166247,-500.0,0.0005041,120]
[357308721,1744004166309,-500.0,0.0005041,120]
[357308722,1744004166544,-500.0,0.0005041,120]
[357308723,1744004166609,-500.0,0.0005041,120]
[357308724,1744004166672,-500.0,0.0005041,120]
[357308725,1744004166739,-206.63808375,0.0005041,120]
[357308726,1744004166801,-500.0,0.0005041,120]
[357308727,1744004166863,-500.0,0.0005041,120]
[357308728,1744004166924,-500.0,0.0005041,120]
[357308729,1744004166987,-500.0,0.0005041,120]
[357308730,1744004167053,-500.0,0.0005041,120]
[357308731,1744004167119,-500.0,0.0005041,120]
[357308732,1744004167181,-500.0,0.0005041,120]
[357308733,1744004167245,-500.0,0.0005041,120]
[357308734,1744004167310,-605.16,0.0005041,120]
[357308735,1744004167375,-552.45,0.0005041,120]
[357308736,1744004167437,-500.0,0.0005041,120]
[357308737,1744004167500,-500.0,0.0005041,120]
[357308738,1744004167562,-500.0,0.0005041,120]
[357308739,1744004167624,-500.0,0.0005041,120]
[357308740,1744004167688,-982.92,0.0005041,120]
[357308741,1744004167750,-500.0,0.0005041,120]
[357308742,1744004167817,-500.0,0.0005041,120]
[357308743,1744004167881,-500.0,0.0005041,120]
[357308744,1744004167944,-500.0,0.0005041,120]
[357308745,1744004168006,-500.0,0.0005041,120]
[357308746,1744004168070,-925.52,0.0005041,120]
[357308747,1744004168144,-500.0,0.0005041,120]
[357308748,1744004168213,-500.0,0.0005041,120]
[357308749,1744004168280,-156.69039937,0.0005041,120]
[357308750,1744004168346,-500.0,0.0005041,120]
[357308751,1744004168411,-668.44,0.0005041,120]
[357308752,1744004168477,-634.14,0.0005041,120]
[357308753,1744004168554,-500.0,0.0005041,120]
[357308754,1744004168626,-500.0,0.0005041,120]
[357308755,1744004168699,-500.0,0.0005041,120]
[357308756,1744004168765,-622.19,0.0005041,120]
[357308757,1744004168828,-500.0,0.0005041,120]
[357308758,1744004168891,-574.69833688,0.0005041,120]
[357308759,1744004168954,-672.79,0.0005041,120]
[357308760,1744004169015,-500.0,0.0005041,120]
[357308761,1744004169077,-500.0,0.0005041,120]
[357308762,1744004169148,-500.0,0.0005041,120]
[357308763,1744004169210,-533.86,0.0005041,120]
[357308764,1744004169271,-500.0,0.0005041,120]
[357308765,1744004169331,-500.0,0.0005041,120]
[357308766,1744004169395,-500.0,0.0005041,120]
[357308767,1744004169454,-500.0,0.0005041,120]
[357308768,1744004169511,-500.0,0.0005041,120]
[357308769,1744004169573,-500.0,0.0005041,120]
[357308770,1744004169635,-500.0,0.0005041,120]
[357308771,1744004169698,-500.0,0.0005041,120]
[357308772,1744004169758,-1225.53,0.0005041,120]
[357308773,1744004169818,-500.0,0.0005041,120]
[357308774,1744004169888,-500.0,0.0005041,120]
[357308775,1744004169973,-500.0,0.0005041,120]
[357308776,1744004170055,-500.0,0.0005041,120]
[357308777,1744004170122,-500.0,0.0005041,120]
[357308778,1744004170196,-500.0,0.0005041,120]
[357308779,1744004170262,-500.0,0.0005041,120]
[357308780,1744004170327,-505.45169566,0.0005041,120]
[357308781,1744004170391,-500.0,0.0005041,120]
[357308782,1744004170457,-500.0,0.0005041,120]
[357308783,1744004170528,-500.0,0.0005041,120]
[357308784,1744004170602,-500.0,0.0005041,120]
[357308785,1744004170674,-500.0,0.0005041,120]
[357308786,1744004170740,-500.0,0.0005041,120]
[357308787,1744004170802,-569.33585832,0.0005041,120]
[357308788,1744004170861,-693.97,0.0005041,120]
[357308789,1744004170923,-500.0,0.0005041,120]
[357308790,1744004170983,-500.0,0.0005041,120]
[357308791,1744004171041,-500.0,0.0005041,120]
[357308792,1744004171100,-500.0,0.0005041,120]
[357308793,1744004171158,-500.0,0.0005041,120]
[357308794,1744004171218,-500.0,0.0005041,120]
[357308795,1744004171280,-551.937164,0.0005041,120]
[357308796,1744004171345,-500.0,0.0005041,120]
[357308797,1744004171409,-500.0,0.0005041,120]
[357308798,1744004171469,-500.0,0.0005041,120]
[357308799,1744004171538,-500.0,0.0005041,120]
[357308800,1744004171599,-704.28,0.0005041,120]
[357308801,1744004171659,-295.46224482,0.0005041,120]
[357308802,1744004171720,-500.0,0.0005041,120]
[357308803,1744004171783,-1261.58,0.0005041,120]
[357308804,1744004171846,-207.20132132,0.0005041,120]
[357308805,1744004171909,-559.03,0.0005041,120]
[357308806,1744004171967,-500.0,0.0005041,120]
[357308807,1744004172027,-500.0,0.0005041,120]
[357308808,1744004172089,-500.0,0.0005041,120]
[357308809,1744004172149,-500.0,0.0005041,120]
[357308810,1744004172212,-500.0,0.0005041,120]
[357308811,1744004172274,-772.01,0.0005041,120]
[357308812,1744004172336,-500.0,0.0005041,120]
[357308813,1744004172402,-760.28,0.0005041,120]
[357308814,1744004172466,-500.0,0.0005041,120]
[357308815,1744004172526,-500.0,0.0005041,120]
[357308816,1744004172805,-500.0,0.0005041,120]
[357308817,1744004172865,-523.51671892,0.0005041,30]
[357308818,1744004172927,-622.13025431,0.0005041,120]
[357308819,1744004172988,-514.29681995,0.0005041,120]
[357308820,1744004173047,-500.0,0.0005041,120]
[357308821,1744004173107,-500.0,0.0005041,120]
[357308822,1744004173168,-500.0,0.0005041,120]
[357308823,1744004173230,-500.0,0.0005041,120]
[357308824,1744004173290,-500.0,0.0005041,120]
[357308825,1744004173353,-500.0,0.0005041,120]
[357308826,1744004173413,-619.38603099,0.0005041,120]
[357308827,1744004173472,-500.0,0.0005041,120]
[357308828,1744004173528,-500.0,0.0005041,120]
[357308829,1744004173583,-500.0,0.0005041,120]
[357308830,1744004173648,-900.59,0.0005041,120]
[357308831,1744004173715,-500.0,0.0005041,120]
[357308832,1744004173781,-500.0,0.0005041,120]
[357308833,1744004173842,-835.94,0.0005041,120]
[357308834,1744004173906,-500.0,0.0005041,120]
[357308835,1744004173968,-500.0,0.0005041,120]
[357308836,1744004174032,-500.0,0.0005041,120]
[357308837,1744004174098,-500.0,0.0005041,120]
[357308838,1744004174167,-500.0,0.0005041,120]
[357308839,1744004174241,-500.0,0.0005041,120]
[357308840,1744004174309,-500.0,0.0005041,120]
[357308841,1744004174375,-1395.43,0.0005041,120]
[357308842,1744004174442,-500.0,0.0005041,120]
[357308843,1744004174510,-596.65,0.0005041,120]
[357308844,1744004174574,-800.51,0.0005041,120]
[357308845,1744004174642,-646.46,0.0005041,120]
[357308846,1744004174711,-518.21967595,0.0005041,120]
[357308847,1744004174777,-500.0,0.0005041,120]
[357308848,1744004174842,-500.0,0.0005041,120]
[357308849,1744004174914,-797.82,0.0005041,120]
[357308850,1744004174981,-500.0,0.0005041,120]
[357308851,1744004175065,-698.98,0.0005041,120]
[357308852,1744004175134,-669.44,0.0005041,120]
[357308853,1744004175199,-2707.98,0.0005041,120]
[357308854,1744004175266,-500.0,0.0005041,120]
[357308855,1744004175333,-204.66808978,0.0005041,120]
[357308856,1744004175397,-257.73200318,0.0005041,120]
[357308857,1744004175461,-500.0,0.0005041,120]
[357308858,1744004175524,-500.0,0.0005041,120]
[357308859,1744004175582,-500.0,0.0005041,120]
[357308860,1744004175646,-500.0,0.0005041,120]
[357308861,1744004175709,-500.0,0.0005041,120]
[357308862,1744004175772,-500.0,0.0005041,120]
[357308863,1744004175830,-500.0,0.0005041,120]
[357308864,1744004175889,-524.26,0.0005041,120]
[357308865,1744004175950,-2353.85,0.0005041,120]
[357308866,1744004176012,-500.0,0.0005041,120]
[357308867,1744004176076,-500.0,0.0005041,120]
[357308868,1744004176140,-987.22,0.0005041,120]
[357308869,1744004176203,-158.17701183,0.0005041,120]
[357308870,1744004176268,-500.0,0.0005041,120]
[357308871,1744004176334,-500.0,0.0005041,120]
[357308872,1744004176395,-500.0,0.0005041,120]
[357308873,1744004176456,-500.0,0.0005041,120]
[357308874,1744004176515,-500.0,0.0005041,120]
[357308875,1744004176575,-1172.21,0.0005041,120]
[357308876,1744004176635,-500.0,0.0005041,120]
[357308877,1744004176696,-500.0,0.0005041,120]
[357308878,1744004176754,-500.0,0.0005041,120]
[357308879,1744004176810,-500.0,0.0005041,120]
[357308880,1744004176867,-500.0,0.0005041,120]
[357308881,1744004176923,-500.0,0.0005041,120]
[357308882,1744004176984,-500.0,0.0005041,120]
[357308883,1744004177048,-851.74,0.0005041,120]
[357308884,1744004177116,-500.0,0.0005041,120]
[357308885,1744004177182,-500.0,0.0005041,120]
[357308886,1744004177248,-1634.77,0.0005041,120]
[357308887,1744004177313,-500.0,0.0005041,120]
[357308888,1744004177376,-500.0,0.0005041,120]
[357308889,1744004177438,-551.53,0.0005041,120]
[357308890,1744004177499,-266.40789218,0.0005041,120]
[357308891,1744004177558,-612.34,0.0005041,120]
[357308892,1744004177615,-500.0,0.0005041,120]
[357308893,1744004177676,-500.0,0.0005041,120]
[357308894,1744004177736,-678.92,0.0005041,120]
[357308895,1744004177795,-651.82,0.0005041,120]
[357308896,1744004177856,-567.32,0.0005041,120]
[357308897,1744004177915,-500.0,0.0005041,120]
[357308898,1744004177974,-500.0,0.0005041,120]
[357308899,1744004178039,-761.56,0.0005041,120]
[357308900,1744004178107,-526.71,0.0005041,30]
[357308901,1744004178175,-500.0,0.0005041,120]
[357308902,1744004178253,-515.69,0.0005041,120]
[357308903,1744004178325,-500.0,0.0005041,120]
[357308904,1744004178391,-515.38443357,0.0005041,120]
[357308905,1744004178459,-500.0,0.0005041,120]
[357308906,1744004178527,-521.47892108,0.0005041,120]
[357308907,1744004178593,-500.0,0.0005041,120]
[357308908,1744004178669,-607.42,0.0005041,120]
[357308909,1744004178738,-174.70647315,0.0005041,120]
[357308910,1744004178801,-808.28,0.0005041,120]
[357308911,1744004179065,-1141.72,0.0005041,120]
[357308912,1744004179129,-500.0,0.0005041,120]
[357308913,1744004179192,-500.0,0.0005041,120]
[357308914,1744004179258,-500.0,0.0005041,120]
[357308915,1744004179323,-500.0,0.0005041,120]
[357308916,1744004179387,-500.0,0.0005041,120]
[357308917,1744004179450,-500.0,0.0005041,120]
[357308918,1744004179516,-500.0,0.0005041,120]
[357308919,1744004179578,-680.97,0.0005041,120]
[357308920,1744004179639,-500.0,0.0005041,120]
[357308921,1744004179701,-836.39,0.0005041,120]
[357308922,1744004179760,-212.66056091,0.0005041,120]
[357308923,1744004179818,-500.0,0.0005041,120]
[357308924,1744004179876,-500.0,0.0005041,120]
[357308925,1744004179935,-500.0,0.0005041,120]
[357308926,1744004179992,-903.73,0.0005041,120]
[357308927,1744004180050,-500.0,0.0005041,120]
[357308928,1744004180107,-520.02611028,0.0005041,120]
[357308929,1744004180164,-500.0,0.0005041,120]
[357308930,1744004180224,-176.940987,0.0005041,120]
[357308931,1744004180283,-500.0,0.0005041,120]
[357308932,1744004180349,-500.0,0.0005041,120]
[357308933,1744004180414,-500.0,0.0005041,120]
[357308934,1744004180475,-1024.23,0.0005041,120]
[357308935,1744004180534,-500.0,0.0005041,120]
[357308936,1744004180592,-500.0,0.0005041,120]
[357308937,1744004180655,-668.47,0.0005041,120]
[357308938,1744004180716,-515.31029726,0.0005041,120]
[357308939,1744004180775,-1188.09,0.0005041,120]
[357308940,1744004180829,-470.86546088,0.0005041,120]
[357308941,1744004199359,-10144.49,0.00048315,120]
[357308942,1744004199421,-10085.93,0.00048315,120]
[357308943,1744004199480,-730.16461003,0.00048315,120]
[357308944,1744004199541,-9991.5,0.00048315,120]
[357308945,1744004199600,-9973.39,0.00048315,120]
[357308946,1744004199661,-9869.35,0.00048589,120]
[357308947,1744004199720,-284.39278423,0.00048589,120]
[357308948,1744004199779,-9919.87,0.00048589,120]
[357308949,1744004199838,-5697.30980997,0.00048589,120]
[357308950,1744004199899,-514.1169681,0.00049315,120]
[357308951,1744004199960,-418.82866576,0.00049315,120]